[Event "GER-ch Blitz Women 2020"]
[Site "Magdeburg"]
[Date "2020.08.15"]
[Round "16.8"]
[White "Zschischang, Marine"]
[Black "Birkholz, Olga"]
[Result "1-0"]
[ECO "A82"]
[WhiteElo "2070"]
[BlackElo "2001"]
[Annotator "NA"]
[PlyCount "105"]
[EventDate "2020.07.28"]
[EventType "tourn"]
[EventCountry "GER"]
[SourceTitle "playchess.com"]
[Source "ChessBase"]
[SourceQuality "1"]
[TimeControl "180+2"]

1. d4 {[%emt 0:00:00]} f5 {[%emt 0:00:00]} 2. e4 {[%emt 0:00:05]} d6 {[%emt 0:00:04]} 3. exf5 {[%emt 0:00:03]} Bxf5 {[%emt 0:00:01]} 4. Bd3 {[%emt 0:00:04]} Bxd3 {[%emt 0:00:10]} 5. Qxd3 {[%emt 0:00:01]} Nf6 {[%emt 0:00:01]} 6. Nf3 {[%emt 0:00:03]} c6 {[%emt 0:00:12]} 7. c3 {[%emt 0:00:11]} Qc8 {[%emt 0:00:09]} 8. Bg5 {[%emt 0:00:19]} Nbd7 {[%emt 0:00:18]} 9. Nbd2 {[%emt 0:00:03]} g6 {[%emt 0:00:05]} 10. Ne4 {[%emt 0:00:25]} Bg7 {[%emt 0:00:13]} 11. O-O {[%emt 0:00:08]} O-O {[%emt 0:00:11]} 12. Rae1 {[%emt 0:00:21]} Rf7 {[%emt 0:00:05]} 13. Re2 {[%emt 0:00:20]} Qf8 {[%emt 0:00:14]} 14. Rfe1 {[%emt 0:00:06]} Nxe4 {[%emt 0:00:48]} 15. Qxe4 {[%emt 0:00:10]} Nf6 {[%emt 0:00:04]} 16. Qe6 {[%emt 0:00:11]} Kh8 {[%emt 0:00:01]} 17. h3 {[%emt 0:00:31]} h6 {[%emt 0:00:01]} 18. Bxf6 {[%emt 0:00:08]} Bxf6 {[%emt 0:00:02]} 19. Qg4 {[%emt 0:00:06]} Kh7 {[%emt 0:00:04]} 20. h4 {[%emt 0:00:03]} Rg7 {[%emt 0:00:11]} 21. Re6 {[%emt 0:00:01]} Re8 {[%emt 0:00:05]} 22. Qe4 {[%emt 0:00:02]} Kh8 {[%emt 0:00:10]} 23. Re2 {[%emt 0:00:03]} Qg8 {[%emt 0:00:04]} 24. Nh2 {[%emt 0:00:03]} g5 {[%emt 0:00:03]} 25. h5 {[%emt 0:00:05]} Rf7 {[%emt 0:00:12]} 26. Ng4 {[%emt 0:00:01]} Qg7 {[%emt 0:00:02]} 27. f3 {[%emt 0:00:04]} d5 {[%emt 0:00:03]} 28. Qe3 {[%emt 0:00:04]} Rff8 {[%emt 0:00:05]} 29. Nxf6 {[%emt 0:00:05]} Rxf6 {[%emt 0:00:03]} 30. Rxe7 {[%emt 0:00:01]} Rxe7 {[%emt 0:00:03]} 31. Qxe7 {[%emt 0:00:01]} Rf7 {[%emt 0:00:01]} 32. Qe8+ {[%emt 0:00:03]} Kh7 {[%emt 0:00:02]} 33. Re6 {[%emt 0:00:03]} Rf8 {[%emt 0:00:09]} 34. Qg6+ {[%emt 0:00:05]} Qxg6 {[%emt 0:00:03]} 35. hxg6+ {[%emt 0:00:02]} Kg7 {[%emt 0:00:02]} 36. Re7+ {[%emt 0:00:01]} Kxg6 {[%emt 0:00:01]} 37. Rxb7 {[%emt 0:00:01]} Rf7 {[%emt 0:00:02]} 38. Rxf7 {[%emt 0:00:02]} Kxf7 {[%emt 0:00:01]} 39. g4 {[%emt 0:00:02]} Ke6 {[%emt 0:00:03]} 40. Kf2 {[%emt 0:00:01]} Kd6 {[%emt 0:00:02]} 41. Kg3 {[%emt 0:00:02]} Ke6 {[%emt 0:00:03]} 42. f4 {[%emt 0:00:01]} gxf4+ 43. Kxf4 Kf6 44. b3 {[%emt 0:00:03]} a6 {[%emt 0:00:07]} 45. c4 {[%emt 0:00:01]} dxc4 {[%emt 0:00:02]} 46. bxc4 {[%emt 0:00:01]} Ke6 {[%emt 0:00:02]} 47. a3 {[%emt 0:00:03]} a5 {[%emt 0:00:02]} 48. a4 {[%emt 0:00:02]} Kf6 {[%emt 0:00:04]} 49. d5 {[%emt 0:00:00]} cxd5 50. cxd5 Ke7 51. Ke5 Kd7 52. d6 Kc6 53. Ke6 1-0

[Event "GER-ch Blitz Women 2020"]
[Site "Magdeburg"]
[Date "2020.08.15"]
[Round "17.2"]
[White "Birkholz, Olga"]
[Black "Frey, Alisa"]
[Result "1/2-1/2"]
[ECO "A45"]
[WhiteElo "2001"]
[BlackElo "2087"]
[Annotator "NA"]
[PlyCount "75"]
[EventDate "2020.07.28"]
[EventType "tourn"]
[EventCountry "GER"]
[SourceTitle "playchess.com"]
[Source "ChessBase"]
[SourceQuality "1"]
[TimeControl "180+2"]

1. d4 {[%emt 0:00:00]} Nf6 {[%emt 0:00:00]} 2. Nc3 {[%emt 0:00:00]} d5 {[%emt 0:00:00]} 3. Bf4 {[%emt 0:00:01]} g6 {[%emt 0:00:02]} 4. Qd2 {[%emt 0:00:03]} h6 {[%emt 0:00:07]} 5. e3 {[%emt 0:00:03]} Bg7 {[%emt 0:00:03]} 6. Be2 {[%emt 0:00:01]} Bf5 {[%emt 0:00:06]} 7. h4 {[%emt 0:00:04]} e6 {[%emt 0:00:09]} 8. Nb5 {[%emt 0:00:14]} Na6 {[%emt 0:00:05]} 9. Qc3 {[%emt 0:00:04]} Ne4 {[%emt 0:00:09]} 10. Nxc7+ {[%emt 0:00:05]} Nxc7 {[%emt 0:00:03]} 11. Qxc7 {[%emt 0:00:01]} Qxc7 {[%emt 0:00:04]} 12. Bxc7 {[%emt 0:00:03]} Rc8 {[%emt 0:00:02]} 13. Ba5 {[%emt 0:00:19]} Rxc2 {[%emt 0:00:02]} 14. b3 {[%emt 0:00:21]} O-O {[%emt 0:00:06]} 15. Nf3 {[%emt 0:00:05]} Rfc8 {[%emt 0:00:03]} 16. Bd3 {[%emt 0:00:37]} Rc1+ 17. Ke2 {[%emt 0:00:10]} Rxh1 {[%emt 0:00:11]} 18. Rxh1 {[%emt 0:00:01]} Nc3+ {[%emt 0:00:05]} 19. Bxc3 {[%emt 0:00:05]} Rxc3 {[%emt 0:00:01]} 20. Bxf5 {[%emt 0:00:02]} gxf5 {[%emt 0:00:02]} 21. Kd2 {[%emt 0:00:05]} Rc6 {[%emt 0:00:04]} 22. Rc1 {[%emt 0:00:06]} Bf8 {[%emt 0:00:06]} 23. Rxc6 {[%emt 0:00:05]} bxc6 {[%emt 0:00:01]} 24. Ne5 {[%emt 0:00:05]} c5 {[%emt 0:00:01]} 25. Nd7 {[%emt 0:00:13]} cxd4 {[%emt 0:00:03]} 26. exd4 {[%emt 0:00:01]} Bd6 {[%emt 0:00:05]} 27. Kd3 {[%emt 0:00:06]} Kg7 {[%emt 0:00:09]} 28. Nc5 {[%emt 0:00:07]} Kf6 {[%emt 0:00:03]} 29. b4 {[%emt 0:00:03]} Ke7 {[%emt 0:00:11]} 30. a4 {[%emt 0:00:01]} f6 {[%emt 0:00:06]} 31. b5 {[%emt 0:00:04]} e5 {[%emt 0:00:10]} 32. Nb7 {[%emt 0:00:04]} Bb4 {[%emt 0:00:11]} 33. Nc5 {[%emt 0:00:07]} Kd6 {[%emt 0:00:07]} 34. Nb3 {[%emt 0:00:02]} Be1 {[%emt 0:00:09]} 35. Ke2 {[%emt 0:00:01]} Bc3 {[%emt 0:00:02]} 36. Kd3 {[%emt 0:00:01]} Bb4 {[%emt 0:00:09]} 37. a5 {[%emt 0:00:03]} Be1 {[%emt 0:00:05]} 38. Ke2 {[%emt 0:00:01]} 1/2-1/2

[Event "GER-ch Blitz Women 2020"]
[Site "Magdeburg"]
[Date "2020.08.15"]
[Round "17.3"]
[White "Muetsch, Annmarie"]
[Black "Zschischang, Marine"]
[Result "1-0"]
[ECO "C10"]
[WhiteElo "2219"]
[BlackElo "2070"]
[Annotator "ChessBase"]
[PlyCount "33"]
[EventDate "2020.07.28"]
[EventType "tourn"]
[EventCountry "GER"]
[SourceTitle "playchess.com"]
[Source "ChessBase"]
[SourceQuality "1"]
[TimeControl "180+2"]

1. e4 {[%emt 0:00:00]} e6 {[%emt 0:00:00]} 2. d4 {[%emt 0:00:00]} d5 {[%emt 0:00:00]} 3. Nd2 {[%emt 0:00:01]} dxe4 {[%emt 0:00:01]} 4. Nxe4 {[%emt 0:00:02]} Nd7 {[%emt 0:00:01]} 5. Nf3 {[%emt 0:00:03]} Ngf6 {[%emt 0:00:00]} 6. Bd3 {[%emt 0:00:05]} c5 {[%emt 0:00:02]} 7. Qe2 {[%emt 0:00:22]} Qc7 {[%emt 0:00:21]} 8. c3 {[%emt 0:00:10]} Nxe4 {[%emt 0:00:14]} 9. Qxe4 {[%emt 0:00:12]} Nf6 {[%emt 0:00:05]} 10. Qe2 {[%emt 0:00:08]} cxd4 {[%emt 0:00:06]} 11. Nxd4 {[%emt 0:00:06]} a6 {[%emt 0:00:02]} 12. Bg5 {[%emt 0:00:09]} Be7 {[%emt 0:00:21]} 13. O-O {[%emt 0:00:08]} Nd5 {[%emt 0:00:22]} 14. Bxe7 {[%emt 0:00:15]} Nxe7 {[%emt 0:00:02]} 15. Qh5 {[%emt 0:00:17]} Bd7 {[%emt 0:01:03]} 16. Rfe1 {[%emt 0:00:05]} Qb6 {[%emt 0:00:28]} 17. Nb3 {[%emt 0:00:43]} 1-0

[Event "GER-ch Blitz Women 2020"]
[Site "Magdeburg"]
[Date "2020.08.15"]
[Round "17.4"]
[White "Kosovska, Olena"]
[Black "Heinemann, Josefine"]
[Result "0-1"]
[ECO "B23"]
[WhiteElo "1881"]
[BlackElo "2281"]
[Annotator "ChessBase"]
[PlyCount "72"]
[EventDate "2020.07.28"]
[EventType "tourn"]
[EventCountry "GER"]
[SourceTitle "playchess.com"]
[Source "ChessBase"]
[SourceQuality "1"]
[TimeControl "180+2"]

1. e4 {[%emt 0:00:00]} c5 {[%emt 0:00:00]} 2. Nc3 {[%emt 0:00:00]} Nc6 {[%emt 0:00:00]} 3. f4 {[%emt 0:00:01]} g6 {[%emt 0:00:01]} 4. Nf3 {[%emt 0:00:03]} Bg7 {[%emt 0:00:01]} 5. Bc4 {[%emt 0:00:01]} e6 {[%emt 0:00:01]} 6. O-O {[%emt 0:00:03]} Nge7 {[%emt 0:00:01]} 7. d3 {[%emt 0:00:02]} O-O {[%emt 0:00:02]} 8. Qe1 {[%emt 0:00:00]} d5 {[%emt 0:00:07]} 9. Bb3 {[%emt 0:00:01]} a6 {[%emt 0:00:11]} 10. Qh4 {[%emt 0:00:02]} b5 {[%emt 0:00:10]} 11. f5 {[%emt 0:00:21]} exf5 {[%emt 0:00:27]} 12. Bh6 {[%emt 0:00:01]} c4 {[%emt 0:00:42]} 13. Ng5 {[%emt 0:00:14]} Bd4+ {[%emt 0:00:19]} 14. Kh1 {[%emt 0:00:04]} cxb3 {[%emt 0:00:16]} 15. Bxf8 {[%emt 0:00:54]} Kxf8 {[%emt 0:00:04]} 16. Qxh7 {[%emt 0:00:07]} Bg7 {[%emt 0:00:03]} 17. Qh4 {[%emt 0:00:28]} d4 {[%emt 0:00:14]} 18. Ne2 {[%emt 0:00:23]} bxa2 {[%emt 0:00:07]} 19. Rxa2 {[%emt 0:00:14]} Ng8 {[%emt 0:00:15]} 20. Nh7+ {[%emt 0:00:04]} Ke8 {[%emt 0:00:01]} 21. Qf4 {[%emt 0:00:16]} Be6 {[%emt 0:00:07]} 22. exf5 {[%emt 0:00:01]} Bxa2 {[%emt 0:00:02]} 23. fxg6 {[%emt 0:00:06]} fxg6 {[%emt 0:00:08]} 24. b3 {[%emt 0:00:01]} Qe7 {[%emt 0:00:08]} 25. Ng3 {[%emt 0:00:06]} Kd8 {[%emt 0:00:06]} 26. Ng5 {[%emt 0:00:03]} Bh6 {[%emt 0:00:04]} 27. Nf7+ {[%emt 0:00:03]} Kc8 {[%emt 0:00:01]} 28. Qg4+ {[%emt 0:00:01]} Kb7 {[%emt 0:00:03]} 29. Qxg6 {[%emt 0:00:03]} Be3 {[%emt 0:00:05]} 30. Ne4 {[%emt 0:00:01]} Kb6 {[%emt 0:00:08]} 31. Nfg5 {[%emt 0:00:11]} Rf8 {[%emt 0:00:02]} 32. Nf3 {[%emt 0:00:01]} Nf6 {[%emt 0:00:02]} 33. Qg3 {[%emt 0:00:03]} Nxe4 {[%emt 0:00:01]} 34. dxe4 {[%emt 0:00:01]} Qxe4 {[%emt 0:00:00]} 35. Qd6 {[%emt 0:00:01]} Rd8 {[%emt 0:00:02]} 36. Qa3 {[%emt 0:00:03]} Qxc2 {[%emt 0:00:04]} 0-1

[Event "GER-ch Blitz Women 2020"]
[Site "Magdeburg"]
[Date "2020.08.15"]
[Round "17.5"]
[White "Zeller, Elisa"]
[Black "Leib, Britta"]
[Result "1-0"]
[ECO "C08"]
[WhiteElo "1969"]
[BlackElo "1903"]
[Annotator "NA"]
[PlyCount "50"]
[EventDate "2020.07.28"]
[EventType "tourn"]
[EventCountry "GER"]
[SourceTitle "playchess.com"]
[Source "ChessBase"]
[SourceQuality "1"]
[TimeControl "180+2"]

1. e4 {[%emt 0:00:00]} e6 {[%emt 0:00:00]} 2. d4 {[%emt 0:00:00]} d5 {[%emt 0:00:00]} 3. Nd2 {[%emt 0:00:01]} c5 {[%emt 0:00:00]} 4. exd5 {[%emt 0:00:02]} exd5 {[%emt 0:00:01]} 5. Ngf3 {[%emt 0:00:05]} Nf6 {[%emt 0:00:01]} 6. Bb5+ {[%emt 0:00:04]} Bd7 {[%emt 0:00:07]} 7. Bxd7+ {[%emt 0:00:01]} Nbxd7 {[%emt 0:00:01]} 8. O-O {[%emt 0:00:02]} Be7 {[%emt 0:00:02]} 9. dxc5 {[%emt 0:00:02]} Nxc5 {[%emt 0:00:01]} 10. Nb3 {[%emt 0:00:04]} Nce4 {[%emt 0:00:17]} 11. Be3 {[%emt 0:00:05]} O-O {[%emt 0:00:03]} 12. Re1 {[%emt 0:00:01]} b6 {[%emt 0:00:05]} 13. Nfd4 {[%emt 0:00:02]} Rc8 {[%emt 0:00:07]} 14. c3 {[%emt 0:00:06]} Bd6 {[%emt 0:00:16]} 15. Nf5 {[%emt 0:00:14]} Bb8 {[%emt 0:00:10]} 16. g3 {[%emt 0:00:24]} Qd7 {[%emt 0:00:02]} 17. Nbd4 {[%emt 0:00:12]} Rfd8 {[%emt 0:00:06]} 18. Qf3 {[%emt 0:00:12]} Kh8 {[%emt 0:00:25]} 19. Bf4 {[%emt 0:00:10]} Bxf4 {[%emt 0:00:18]} 20. Qxf4 {[%emt 0:00:02]} g6 {[%emt 0:00:14]} 21. Ne3 {[%emt 0:00:02]} Kg7 {[%emt 0:00:05]} 22. f3 {[%emt 0:00:09]} Nd6 {[%emt 0:00:40]} 23. Rad1 {[%emt 0:00:07]} Qc7 {[%emt 0:00:22]} 24. Qg5 {[%emt 0:00:08]} Nfe8 {[%emt 0:00:17]} 25. Nxd5 {[%emt 0:00:16]} Qd7 1-0

[Event "GER-ch Blitz Women 2020"]
[Site "Magdeburg"]
[Date "2020.08.15"]
[Round "17.7"]
[White "Skibbe, Diana"]
[Black "Mader, Lena"]
[Result "0-1"]
[ECO "B15"]
[WhiteElo "1991"]
[BlackElo "1839"]
[Annotator "NA"]
[PlyCount "58"]
[EventDate "2020.07.28"]
[EventType "tourn"]
[EventCountry "GER"]
[SourceTitle "playchess.com"]
[Source "ChessBase"]
[SourceQuality "1"]
[TimeControl "180+2"]

1. e4 {[%emt 0:00:00]} c6 {[%emt 0:00:00]} 2. d4 {[%emt 0:00:01]} d5 {[%emt 0:00:00]} 3. Nc3 {[%emt 0:00:02]} dxe4 {[%emt 0:00:02]} 4. Nxe4 {[%emt 0:00:02]} Nf6 {[%emt 0:00:01]} 5. Nxf6+ {[%emt 0:00:01]} exf6 {[%emt 0:00:01]} 6. Nf3 {[%emt 0:00:02]} Bd6 {[%emt 0:00:01]} 7. Bd3 {[%emt 0:00:04]} O-O {[%emt 0:00:02]} 8. Be3 {[%emt 0:00:03]} Be6 {[%emt 0:00:03]} 9. O-O {[%emt 0:00:07]} Re8 {[%emt 0:00:03]} 10. c4 {[%emt 0:00:02]} Nd7 {[%emt 0:00:03]} 11. d5 {[%emt 0:00:10]} cxd5 {[%emt 0:00:11]} 12. cxd5 {[%emt 0:00:01]} Bg4 {[%emt 0:00:02]} 13. h3 {[%emt 0:00:11]} Bh5 {[%emt 0:00:12]} 14. g4 {[%emt 0:00:30]} Bg6 {[%emt 0:00:01]} 15. Bxg6 {[%emt 0:00:01]} hxg6 {[%emt 0:00:01]} 16. Kg2 {[%emt 0:00:11]} Ne5 {[%emt 0:00:09]} 17. Nxe5 {[%emt 0:00:06]} Bxe5 {[%emt 0:00:01]} 18. f4 {[%emt 0:00:06]} Bxb2 {[%emt 0:00:22]} 19. Rb1 {[%emt 0:00:01]} Rxe3 {[%emt 0:00:21]} 20. Rxb2 {[%emt 0:00:01]} b6 {[%emt 0:00:01]} 21. Rd2 {[%emt 0:00:01]} Qd6 {[%emt 0:00:08]} 22. Rf3 {[%emt 0:00:07]} Rae8 {[%emt 0:00:03]} 23. Qg1 {[%emt 0:00:20]} Re2+ {[%emt 0:00:08]} 24. Rf2 {[%emt 0:00:02]} Rxd2 {[%emt 0:00:15]} 25. Rxd2 {[%emt 0:00:04]} Qxf4 {[%emt 0:00:04]} 26. Qd1 {[%emt 0:00:07]} Re3 {[%emt 0:00:15]} 27. Rf2 {[%emt 0:00:19]} Qg3+ {[%emt 0:00:09]} 28. Kf1 {[%emt 0:00:03]} Qxh3+ {[%emt 0:00:04]} 29. Kg1 {[%emt 0:00:03]} Rg3+ {[%emt 0:00:03]} 0-1